fUSD/lending_fUSD_20260401
["ID","MTS","AMOUNT","RATE_DAILY","PERIOD"]
[419180226,1775008251899,-1133.0,0.00024,2]
[419180227,1775008251910,-1101.0,0.00024,2]
[419180228,1775008251920,-5328.0,0.00024,2]
[419180229,1775008251930,-1283.0,0.00024,2]
[419180230,1775008251940,-599.0,0.00024,2]
[419180231,1775008251950,-500.98,0.00024247,2]
[419180232,1775008251960,-217.15233878,0.00024382,2]
[419180233,1775008251969,-2666.91216588,0.00024393,2]
[419180234,1775008251979,-5727.00358239,0.00024393,2]
[419180235,1775008251990,-503.0,0.00024496,11]
[419180236,1775008252000,-157.33,0.00024658,2]
[419180237,1775008252010,-1000.0,0.00024658,2]
[419180238,1775008252019,-150.0,0.00024658,2]
[419180239,1775008252028,-825.0,0.00024872,60]
[419180240,1775008252038,-166.0,0.00024877,2]
[419180241,1775008252047,-500.0,0.00024899,2]
[419180242,1775008252056,-500.0,0.00024899,2]
[419180243,1775008252065,-333.45,0.00024899,2]
[419180244,1775008252074,-150.0,0.00024899,2]
[419180245,1775008252084,-233.18650358,0.00024899,2]
[419180246,1775008252092,-151.0,0.000249,2]
[419180247,1775008252101,-193.573735,0.000249,2]
[419180248,1775008252110,-151.0,0.000249,2]
[419180249,1775008252119,-151.0,0.000249,2]
[419180250,1775008252128,-174.943365,0.000249,2]
[419180251,1775008252137,-151.0,0.000249,2]
[419180252,1775008252146,-174.943365,0.000249,2]
[419180253,1775008252156,-151.0,0.000249,2]
[419180254,1775008252165,-174.943365,0.000249,2]
[419180255,1775008252174,-174.943365,0.000249,2]
[419180256,1775008252188,-343.842795,0.000249,2]
[419180257,1775008252199,-343.842795,0.000249,2]
[419180258,1775008252208,-343.842795,0.000249,2]
[419180259,1775008252218,-168.016551,0.000249,2]
[419180260,1775008252228,-168.016551,0.000249,2]
[419180261,1775008252238,-168.016551,0.000249,2]
[419180262,1775008252249,-168.016551,0.000249,2]
[419180263,1775008252258,-343.842795,0.000249,2]
[419180264,1775008252268,-151.0,0.000249,2]
[419180265,1775008252279,-151.0,0.000249,2]
[419180266,1775008252289,-151.0,0.000249,2]
[419180267,1775008252298,-151.0,0.000249,2]
[419180268,1775008252310,-151.0,0.000249,2]
[419180269,1775008252319,-151.0,0.000249,2]
[419180270,1775008252328,-151.0,0.000249,2]
[419180271,1775008252337,-151.0,0.000249,2]
[419180272,1775008252348,-151.0,0.000249,2]
[419180273,1775008252358,-151.0,0.000249,2]
[419180274,1775008252367,-151.0,0.000249,2]
[419180275,1775008252375,-151.0,0.000249,2]
[419180276,1775008252384,-151.0,0.000249,2]
[419180277,1775008252393,-151.0,0.000249,2]
[419180278,1775008252403,-151.0,0.000249,2]
[419180279,1775008252411,-151.0,0.000249,2]
[419180280,1775008252420,-151.0,0.000249,2]
[419180281,1775008252430,-156.028324,0.000249,2]
[419180282,1775008252439,-156.028324,0.000249,2]
[419180283,1775008252449,-156.028324,0.000249,2]
[419180284,1775008252458,-156.028324,0.000249,2]
[419180285,1775008252467,-151.0,0.000249,2]
[419180286,1775008252476,-151.0,0.000249,2]
[419180287,1775008252486,-151.0,0.000249,2]
[419180288,1775008252495,-200.0,0.000249,9]
[419180289,1775008252504,-259.360581,0.000249,2]
[419180290,1775008252513,-259.360581,0.000249,2]
[419180291,1775008252522,-259.360581,0.000249,2]
[419180292,1775008252531,-259.360581,0.000249,2]
[419180293,1775008252541,-15925.0829816,0.000249,2]
[419180294,1775008252550,-151.0,0.000249,2]
[419180295,1775008252559,-151.0,0.000249,2]
[419180296,1775008252568,-151.0,0.000249,2]
[419180297,1775008252577,-151.0,0.000249,2]
[419180298,1775008252586,-151.0,0.000249,2]
[419180299,1775008252596,-189.530249,0.000249,2]
[419180300,1775008252605,-151.0,0.000249,2]
[419180301,1775008252615,-151.0,0.000249,2]
[419180302,1775008252624,-1313.53875,0.000249,2]
[419180303,1775008252634,-171.108772,0.000249,2]
[419180304,1775008252643,-1313.53875,0.000249,2]
[419180305,1775008252652,-171.108772,0.000249,2]
[419180306,1775008252661,-151.0,0.000249,2]
[419180307,1775008252670,-151.0,0.000249,2]
[419180308,1775008252679,-171.108772,0.000249,2]
[419180309,1775008252688,-1313.53875,0.000249,2]
[419180310,1775008252697,-2502.821982,0.000249,2]
[419180311,1775008252707,-151.0,0.000249,2]
[419180312,1775008252716,-1313.53875,0.000249,2]
[419180313,1775008252725,-171.108772,0.000249,2]
[419180314,1775008252734,-2502.821982,0.000249,2]
[419180315,1775008252743,-151.0,0.000249,2]
[419180316,1775008252752,-167.533581,0.000249,2]
[419180317,1775008252762,-2502.821982,0.000249,2]
[419180318,1775008252771,-167.533581,0.000249,2]
[419180319,1775008252782,-2502.821982,0.000249,2]
[419180320,1775008252791,-167.533581,0.000249,2]
[419180321,1775008252800,-151.0,0.000249,2]
[419180322,1775008252812,-167.533581,0.000249,2]
[419180323,1775008252822,-296.139157,0.000249,2]
[419180324,1775008252832,-151.0,0.000249,2]
[419180325,1775008252841,-151.0,0.000249,2]
[419180326,1775008252851,-296.139157,0.000249,2]
[419180327,1775008252860,-183.727139,0.000249,2]
[419180328,1775008252870,-199.198546,0.000249,2]
[419180329,1775008252880,-296.139157,0.000249,2]
[419180330,1775008252890,-421.876276,0.000249,2]
[419180331,1775008252899,-296.139157,0.000249,2]
[419180332,1775008252908,-421.876276,0.000249,2]
[419180333,1775008252918,-421.876276,0.000249,2]
[419180334,1775008252928,-421.876276,0.000249,2]
[419180335,1775008252938,-873.524236,0.000249,2]
[419180336,1775008252947,-873.524236,0.000249,2]
[419180337,1775008252956,-151.0,0.000249,2]
[419180338,1775008252966,-151.0,0.000249,2]
[419180339,1775008252975,-873.524236,0.000249,2]
[419180340,1775008252984,-873.524236,0.000249,2]
[419180341,1775008252995,-228.29854814,0.0002493,2]
[419180342,1775008253005,-500.0,0.00025,2]
[419180343,1775008253108,-1133.0,0.00025,2]
[419180344,1775008253155,-1101.0,0.00025,2]
[419180345,1775008253165,-5328.0,0.00025,2]
[419180346,1775008253175,-1283.0,0.00025,2]
[419180347,1775008253184,-599.0,0.00025,2]
[419180348,1775008253193,-500.0,0.00025,7]
[419180349,1775008253203,-300.0,0.00025,7]
[419180350,1775008253212,-150.0,0.00025368,2]
[419180351,1775008253221,-150.0,0.00025368,2]
[419180352,1775008253231,-150.0,0.00025368,2]
[419180353,1775008253241,-805.6,0.00025472,2]
[419180354,1775008253251,-2000.0,0.000256,2]
[419180355,1775008253261,-150.0,0.0002589,2]
[419180356,1775008253271,-503.0,0.00025919,13]
[419180357,1775008253281,-500.0,0.00026,2]
[419180358,1775008253291,-1133.0,0.00026,2]
[419180359,1775008253300,-1101.0,0.00026,2]
[419180360,1775008253310,-5328.0,0.00026,2]
[419180361,1775008253320,-1283.0,0.00026,2]
[419180362,1775008253330,-599.0,0.00026,2]
[419180363,1775008253339,-1346.0,0.00026029,2]
[419180364,1775008253349,-3519.0,0.00026029,2]
[419180365,1775008253359,-621.0,0.00026029,2]
[419180366,1775008253369,-1045.0,0.00026029,2]
[419180367,1775008253378,-1263.0,0.00026029,2]
[419180368,1775008253387,-925.0,0.00026029,2]
[419180369,1775008253397,-1216.0,0.00026029,2]
[419180370,1775008253406,-6016.0,0.00026029,2]
[419180371,1775008253416,-2469.0,0.00026029,2]
[419180372,1775008253426,-270.8,0.00026133,30]
[419180373,1775008253436,-999.15405883,0.00026333,2]
[419180374,1775008253446,-509.656853,0.00026345,120]
[419180375,1775008253456,-897.0,0.00026458,5]
[419180376,1775008253467,-250.0,0.00026464,7]
[419180377,1775008253476,-152.0,0.00026561,3]
[419180378,1775008253487,-250.0,0.0002681,8]
[419180379,1775008253499,-500.0,0.00026959,2]
[419180380,1775008253509,-805.6,0.00026978,2]
[419180381,1775008253519,-800.0,0.00026986,120]
[419180382,1775008253529,-800.0,0.00026986,120]
[419180383,1775008253539,-150.0,0.00027,2]
[419180384,1775008253550,-20000.0,0.00027,2]
[419180385,1775008253559,-519.08733496,0.00027,2]
[419180386,1775008253568,-1134.37979984,0.00027,2]
[419180387,1775008253578,-1111.32774423,0.00027,2]
[419180388,1775008253587,-5342.67305915,0.00027,2]
[419180389,1775008253597,-1292.62658029,0.00027,2]
[419180390,1775008253607,-615.2014381,0.00027,2]
[419180391,1775008253616,-2808.0,0.0002704,3]
[419180392,1775008253626,-150.0,0.00027185,2]
[419180393,1775008253635,-151.0,0.00027246,2]
[419180394,1775008253645,-152.0,0.00027246,4]
[419180395,1775008253655,-285.40491142,0.000273,30]
[419180396,1775008253664,-285.40491141,0.000273,30]
[419180397,1775008253674,-825.0,0.00027309,60]
[419180398,1775008253683,-503.0,0.00027343,14]
[419180399,1775008253693,-151.0,0.00027394,7]
[419180400,1775008253702,-450.66053804,0.00027397,2]
[419180401,1775008253712,-300.0,0.00027397,2]
[419180402,1775008253721,-151.0,0.00027397,2]
[419180403,1775008253732,-151.0,0.00027397,2]
[419180404,1775008253742,-432.594448,0.00027397,2]
[419180405,1775008253751,-432.594448,0.00027397,2]
[419180406,1775008253761,-432.594448,0.00027397,2]
[419180407,1775008253770,-432.594448,0.00027397,2]
[419180408,1775008253780,-432.594448,0.00027397,2]
[419180409,1775008253789,-432.594448,0.00027397,2]
[419180410,1775008253799,-432.594448,0.00027397,2]
[419180411,1775008253808,-432.594448,0.00027397,2]
[419180412,1775008253818,-432.594448,0.00027397,2]
[419180413,1775008253828,-432.594448,0.00027397,2]
[419180414,1775008253839,-432.594448,0.00027397,2]
[419180415,1775008253849,-432.594448,0.00027397,2]
[419180416,1775008253858,-1000.0,0.00027397,20]
[419180417,1775008253868,-330.45036883,0.00027397,2]
[419180418,1775008253878,-161.0,0.00027479,3]
[419180419,1775008253888,-178.312831,0.000276,7]
[419180420,1775008253899,-151.0,0.000276,7]
[419180421,1775008253909,-178.312831,0.000276,7]
[419180422,1775008253919,-2296.649879,0.000276,7]
[419180423,1775008253929,-151.0,0.000276,7]
[419180424,1775008253939,-178.312831,0.000276,7]
[419180425,1775008253948,-151.0,0.000276,7]
[419180426,1775008253959,-2296.649879,0.000276,7]
[419180427,1775008253969,-2296.649879,0.000276,7]
[419180428,1775008253979,-178.312831,0.000276,7]
[419180429,1775008253988,-421.938934,0.000276,7]
[419180430,1775008253998,-2296.649879,0.000276,7]
[419180431,1775008254010,-421.938934,0.000276,7]
[419180432,1775008254019,-421.938934,0.000276,7]
[419180433,1775008254029,-421.938934,0.000276,7]
[419180434,1775008254039,-234.891227,0.000276,7]
[419180435,1775008254049,-234.891227,0.000276,7]
[419180436,1775008254058,-234.891227,0.000276,7]
[419180437,1775008254067,-234.891227,0.000276,7]
[419180438,1775008254077,-190.117916,0.000276,7]
[419180439,1775008254087,-1036.720444,0.000276,7]
[419180440,1775008254096,-190.117916,0.000276,7]
[419180441,1775008254106,-1036.720444,0.000276,7]
[419180442,1775008254116,-190.117916,0.000276,7]
[419180443,1775008254126,-1517.926247,0.000276,7]
[419180444,1775008254136,-1036.720444,0.000276,7]
[419180445,1775008254147,-190.117916,0.000276,7]
[419180446,1775008254158,-1517.926247,0.000276,7]
[419180447,1775008254167,-1036.720444,0.000276,7]
[419180448,1775008254177,-151.0,0.000276,7]
[419180449,1775008254186,-3504.13553,0.000276,7]
[419180450,1775008254196,-151.0,0.000276,7]
[419180451,1775008254205,-151.0,0.000276,7]
[419180452,1775008254215,-3504.13553,0.000276,7]
[419180453,1775008254225,-151.0,0.000276,7]
[419180454,1775008254234,-3504.13553,0.000276,7]
[419180455,1775008254244,-1517.926247,0.000276,7]
[419180456,1775008254254,-3504.13553,0.000276,7]
[419180457,1775008254263,-1517.926247,0.000276,7]
[419180458,1775008254272,-151.0,0.000276,7]
[419180459,1775008254281,-151.0,0.000276,7]
[419180460,1775008254292,-1000.0,0.00027874,120]
[419180461,1775008254301,-167.07810611,0.000279,2]
[419180462,1775008254311,-152.0,0.00027932,5]
[419180463,1775008254322,-5800.0,0.00027934,2]
[419180464,1775008254333,-5800.0,0.00027942,2]
[419180465,1775008254344,-161.980883,0.00027942,7]
[419180466,1775008254354,-296.09292,0.00027942,7]
[419180467,1775008254365,-296.09292,0.00027942,7]
[419180468,1775008254375,-151.0,0.00027942,7]
[419180469,1775008254384,-296.09292,0.00027942,7]
[419180470,1775008254394,-1057.162612,0.00027942,7]
[419180471,1775008254404,-151.0,0.00027942,7]
[419180472,1775008254414,-296.09292,0.00027942,7]
[419180473,1775008254425,-151.0,0.00027942,7]
[419180474,1775008254434,-1057.162612,0.00027942,7]
[419180475,1775008254443,-151.0,0.00027942,7]
[419180476,1775008254454,-11991.582422,0.00027942,2]
[419180477,1775008254464,-151.0,0.00027942,7]
[419180478,1775008254474,-1057.162612,0.00027942,7]
[419180479,1775008254485,-151.0,0.00027942,7]
[419180480,1775008254496,-1057.162612,0.00027942,7]
[419180481,1775008254507,-151.0,0.00027942,7]
[419180482,1775008254517,-11991.582422,0.00027942,2]
[419180483,1775008254527,-151.0,0.00027942,7]
[419180484,1775008254537,-151.0,0.00027942,7]
[419180485,1775008254547,-11991.582422,0.00027942,2]
[419180486,1775008254557,-151.0,0.00027942,7]
[419180487,1775008254569,-11991.582422,0.00027942,2]
[419180488,1775008254578,-151.0,0.00027942,7]
[419180489,1775008254588,-151.0,0.00027942,7]
[419180490,1775008254597,-5800.0,0.00027951,2]
[419180491,1775008254607,-5800.0,0.00027959,2]
[419180492,1775008254616,-1000.0,0.00028,120]
[419180493,1775008254625,-250.0,0.00028,10]
[419180494,1775008254635,-250.0,0.00028,10]
[419180495,1775008254646,-250.0,0.00028,10]
[419180496,1775008254656,-250.0,0.00028,10]
[419180497,1775008254666,-250.0,0.00028,10]
[419180498,1775008254678,-160.0,0.00028,10]
[419180499,1775008254688,-160.0,0.00028,3]
[419180500,1775008254697,-160.0,0.00028,7]
[419180501,1775008254707,-500.0,0.00028137,30]
[419180502,1775008254716,-500.0,0.00028137,120]
[419180503,1775008254725,-500.0,0.00028137,120]
[419180504,1775008254735,-500.0,0.00028137,120]
[419180505,1775008254744,-500.0,0.00028137,120]
[419180506,1775008254753,-500.0,0.00028137,120]
[419180507,1775008254762,-500.0,0.00028137,120]
[419180508,1775008254771,-500.0,0.00028137,10]
[419180509,1775008254780,-500.0,0.00028137,120]
[419180510,1775008254789,-500.0,0.00028137,120]
[419180511,1775008254799,-500.0,0.00028137,120]
[419180512,1775008254808,-500.0,0.00028137,45]
[419180513,1775008254819,-500.0,0.00028137,120]
[419180514,1775008254828,-500.0,0.00028137,120]
[419180515,1775008254837,-500.0,0.00028137,10]
[419180516,1775008254846,-500.0,0.00028137,120]
[419180517,1775008254856,-500.0,0.00028137,120]
[419180518,1775008254866,-500.0,0.00028137,120]
[419180519,1775008254875,-500.0,0.00028137,120]
[419180520,1775008254884,-500.0,0.00028137,30]
[419180521,1775008254894,-500.0,0.00028137,120]
[419180522,1775008254905,-500.0,0.00028137,120]
[419180523,1775008254916,-500.0,0.00028137,120]
[419180524,1775008254926,-500.0,0.00028137,120]
[419180525,1775008254936,-500.0,0.00028137,2]
[419180526,1775008254946,-1000.0,0.00028138,120]
[419180527,1775008254955,-805.6,0.00028483,2]
[419180528,1775008254965,-250.0,0.000285,10]
[419180529,1775008254975,-250.0,0.000285,10]
[419180530,1775008254984,-343.46,0.000285,10]
[419180531,1775008254994,-150.0,0.00028544,2]
[419180532,1775008255003,-152.0,0.00028617,6]
[419180533,1775008255013,-503.0,0.00028766,15]
[419180534,1775008255024,-250.0,0.00028927,2]
[419180535,1775008255034,-368.0,0.00028927,2]
[419180536,1775008255043,-1346.0,0.00029029,2]
[419180537,1775008255052,-3519.0,0.00029029,2]
[419180538,1775008255061,-621.0,0.00029029,2]
[419180539,1775008255070,-1045.0,0.00029029,2]
[419180540,1775008255080,-1263.0,0.00029029,2]
[419180541,1775008255089,-389.701,0.00029029,2]
[419180542,1775008255098,-2469.0,0.00029029,2]
[419180543,1775008255108,-1444.0,0.00029041,120]
[419180544,1775008255118,-250.0,0.00029053,2]
[419180545,1775008255129,-250.0,0.00029053,2]
[419180546,1775008255138,-245.0,0.00029053,2]
[419180547,1775008255147,-2000.0,0.000293,2]
[419180548,1775008255156,-152.0,0.00029303,7]
[419180549,1775008255166,-250.0,0.0002939,13]
[419180550,1775008255175,-999.15405883,0.00029617,2]
[419180551,1775008255184,-397.0,0.00029723,2]
[419180552,1775008255194,-825.0,0.00029745,60]
[419180553,1775008255203,-400.0,0.00029757,2]
[419180554,1775008255213,-402.0,0.00029845,2]
[419180555,1775008255222,-397.0,0.00029845,2]
[419180556,1775008255231,-150.0,0.00029971,2]
[419180557,1775008255547,-152.0,0.00029988,8]
[419180558,1775008255571,-805.6,0.00029989,2]
[419180559,1775008255581,-1450.0,0.00029989,2]
[419180560,1775008255591,-1450.0,0.00029989,2]
[419180561,1775008255600,-1399.0,0.00029989,2]
[419180562,1775008255610,-1777.0,0.0003,2]
[419180563,1775008255619,-200.0,0.0003,11]
[419180564,1775008255629,-160.0,0.0003,120]
[419180565,1775008255640,-216.349999,0.0003,11]
[419180566,1775008255651,-1014.36,0.0003,30]
[419180567,1775008255660,-160.0,0.0003,120]
[419180568,1775008255669,-160.0,0.0003,120]
[419180569,1775008255678,-1450.0,0.0003,2]
[419180570,1775008255688,-400.0,0.00030066,7]
[419180571,1775008255698,-397.0,0.00030078,2]
[419180572,1775008255708,-397.0,0.00030116,2]
[419180573,1775008255716,-157.33,0.00030137,2]
[419180574,1775008255725,-164.36,0.00030137,2]
[419180575,1775008255735,-503.0,0.00030189,16]
[419180576,1775008255746,-250.0,0.00030245,15]
[419180577,1775008255755,-270.8,0.00030266,60]
[419180578,1775008255764,-400.0,0.00030281,2]
[419180579,1775008255775,-1014.36,0.00030288,30]
[419180580,1775008255785,-962.74,0.000303,2]
[419180581,1775008255795,-397.0,0.0003033,2]
[419180582,1775008255804,-541.58,0.00030411,120]
[419180583,1775008255813,-397.0,0.00030463,2]
[419180584,1775008255823,-1014.36,0.00030577,30]
[419180585,1775008255833,-200.0,0.00030599,2]
[419180586,1775008255842,-281.0,0.00030599,2]
[419180587,1775008255852,-1000.0,0.0003067,2]
[419180588,1775008255862,-500.0,0.0003067,2]
[419180589,1775008255871,-152.0,0.00030674,9]
[419180590,1775008255880,-234.91244304,0.00030685,2]
[419180591,1775008255891,-397.0,0.00030794,2]
[419180592,1775008255900,-1014.36,0.00030865,30]
[419180593,1775008255911,-1000.0,0.0003087,2]
[419180594,1775008255921,-500.0,0.0003087,2]
[419180595,1775008255932,-200.0,0.00031,11]
[419180596,1775008255941,-2150.0,0.00031025,2]
[419180597,1775008255952,-2150.0,0.00031025,2]
[419180598,1775008255961,-2136.0,0.00031025,2]
[419180599,1775008255970,-166.33302476,0.00031075,72]
[419180600,1775008255981,-800.0,0.00031082,21]
[419180601,1775008255990,-400.0,0.0003112,2]
[419180602,1775008256000,-1014.36,0.00031154,30]
[419180603,1775008256010,-2808.0,0.00031172,3]
[419180604,1775008256020,-219.0,0.00031267,2]
[419180605,1775008256029,-150.0,0.00031275,2]
[419180606,1775008256039,-397.0,0.00031288,2]
[419180607,1775008256049,-2808.0,0.00031338,3]
[419180608,1775008256058,-1300.0,0.00031356,21]
[419180609,1775008256068,-152.0,0.00031359,10]
[419180610,1775008256079,-397.0,0.00031404,2]
[419180611,1775008256089,-1014.36,0.00031442,30]
[419180612,1775008256099,-150.0,0.0003147,2]
[419180613,1775008256108,-370.0,0.00031492,3]
[419180614,1775008256118,-162.0,0.00031492,3]
[419180615,1775008256127,-805.6,0.00031494,2]
[419180616,1775008256137,-503.0,0.00031612,18]
[419180617,1775008256146,-250.0,0.00031627,20]
[419180618,1775008256156,-397.0,0.00031642,2]
[419180619,1775008256165,-1014.36,0.00031731,30]
[419180620,1775008256175,-397.0,0.00031796,2]
[419180621,1775008256185,-397.0,0.00031856,2]
[419180622,1775008256195,-397.0,0.00031886,7]
[419180623,1775008256206,-800.0,0.00031904,21]
[419180624,1775008256215,-281.20200769,0.00032,120]
[419180625,1775008256224,-474.49406487,0.00032,120]
[419180626,1775008256235,-558.67828093,0.00032,120]
[419180627,1775008256245,-2213.05935834,0.00032,120]
[419180628,1775008256254,-422.90651773,0.00032,120]
[419180629,1775008256263,-646.26964203,0.00032,120]
[419180630,1775008256272,-183.55573245,0.00032,120]
[419180631,1775008256282,-2000.0,0.00032,7]
[419180632,1775008256291,-221.44526151,0.00032,120]
[419180633,1775008256300,-500.0,0.00032,7]
[419180634,1775008256310,-500.0,0.00032,7]
[419180635,1775008256319,-500.0,0.00032,7]
[419180636,1775008256329,-500.0,0.00032,7]
[419180637,1775008256340,-500.0,0.00032,7]
[419180638,1775008256352,-500.0,0.00032,7]
[419180639,1775008256362,-500.0,0.00032,7]
[419180640,1775008256372,-500.0,0.00032,7]
[419180641,1775008256382,-500.0,0.00032,7]
[419180642,1775008256392,-500.0,0.00032,7]
[419180643,1775008256404,-500.0,0.00032,7]
[419180644,1775008256413,-500.0,0.00032,7]
[419180645,1775008256422,-500.0,0.00032,7]
[419180646,1775008256432,-500.0,0.00032,7]
[419180647,1775008256443,-500.0,0.00032,7]
[419180648,1775008256454,-500.0,0.00032,7]
[419180649,1775008256464,-500.0,0.00032,7]
[419180650,1775008256475,-500.0,0.00032,7]
[419180651,1775008256485,-500.0,0.00032,7]
[419180652,1775008256495,-500.0,0.00032,7]
[419180653,1775008256505,-500.0,0.00032,7]
[419180654,1775008256515,-500.0,0.00032,7]
[419180655,1775008256524,-500.0,0.00032,7]
[419180656,1775008256534,-500.0,0.00032,7]
[419180657,1775008256543,-500.0,0.00032,7]
[419180658,1775008256553,-500.0,0.00032,7]
[419180659,1775008256562,-500.0,0.00032,7]
[419180660,1775008256572,-500.0,0.00032,7]
[419180661,1775008256581,-500.0,0.00032,7]
[419180662,1775008256590,-500.0,0.00032,7]
[419180663,1775008256599,-439.46541287,0.00032,7]
[419180664,1775008257853,-60.53458713,0.00032,7]
[419180665,1775008257863,-238.09452514,0.00032,7]
[419180666,1775008257880,-1450.0,0.0003,2]
[419180667,1775008257891,-261.90547486,0.00032,7]
[419180668,1775008257900,-179.48093759,0.00032,120]
[419180669,1775008257910,-500.0,0.00032,7]
[419180670,1775008257920,-500.0,0.00032,7]
[419180671,1775008257931,-500.0,0.00032,7]
[419180672,1775008257940,-500.0,0.00032,7]
[419180673,1775008257950,-500.0,0.00032,7]
[419180674,1775008257960,-500.0,0.00032,7]
[419180675,1775008257970,-500.0,0.00032,7]
[419180676,1775008257979,-500.0,0.00032,7]
[419180677,1775008257989,-500.0,0.00032,7]
[419180678,1775008257999,-495.25,0.00032,7]
[419180679,1775008258009,-500.0,0.00032,7]
[419180680,1775008258019,-500.0,0.00032,7]
[419180681,1775008258029,-500.0,0.00032,7]
[419180682,1775008258039,-500.0,0.00032,7]
[419180683,1775008258049,-500.0,0.00032,7]
[419180684,1775008258058,-500.0,0.00032,7]
[419180685,1775008258069,-500.0,0.00032,7]
[419180686,1775008258079,-500.0,0.00032,7]
[419180687,1775008258088,-500.0,0.00032,7]
[419180688,1775008258098,-500.0,0.00032,7]
[419180689,1775008258108,-500.0,0.00032,7]
[419180690,1775008258117,-500.0,0.00032,7]
[419180691,1775008258127,-500.0,0.00032,7]
[419180692,1775008258137,-500.0,0.00032,7]
[419180693,1775008258147,-500.0,0.00032,7]
[419180694,1775008258157,-500.0,0.00032,7]
[419180695,1775008258168,-500.0,0.00032,7]
[419180696,1775008258177,-500.0,0.00032,7]
[419180697,1775008258187,-500.0,0.00032,7]
[419180698,1775008258197,-500.0,0.00032,7]
[419180699,1775008258207,-200.0,0.00032,12]
[419180700,1775008258217,-500.0,0.00032,7]
[419180701,1775008258226,-500.0,0.00032,7]
[419180702,1775008258236,-500.0,0.00032,7]
[419180703,1775008258246,-500.0,0.00032,7]
[419180704,1775008258256,-500.0,0.00032,7]
[419180705,1775008258266,-500.0,0.00032,7]
[419180706,1775008258275,-500.0,0.00032,7]
[419180707,1775008258285,-567.71,0.00032,7]
[419180708,1775008258295,-252.08848879,0.00032,5]
[419180709,1775008258305,-500.0,0.00032,5]
[419180710,1775008258314,-200.00226667,0.00032,120]
[419180711,1775008258324,-241811.21165748,0.00032,7]
[419180712,1775008258334,-500.0,0.00032,30]
[419180713,1775008258344,-160.0,0.00032,7]
[419180714,1775008258354,-924.65770701,0.0003201,2]
[419180715,1775008258363,-1014.36,0.00032019,120]
[419180716,1775008258373,-1346.0,0.00032029,2]
[419180717,1775008258383,-3519.0,0.00032029,2]
[419180718,1775008258392,-1045.0,0.00032029,2]
[419180719,1775008258402,-1263.0,0.00032029,2]
[419180720,1775008258411,-313.432,0.00032029,2]
[419180721,1775008258420,-1571.0,0.00032031,3]
[419180722,1775008258430,-152.0,0.00032045,11]
[419180723,1775008258439,-397.0,0.00032083,2]
[419180724,1775008258449,-208.73887276,0.00032127,5]
[419180725,1775008258459,-1300.0,0.00032178,21]